bitfinex-derivatives/quotes_ETHF0:USTF0_20250912
["timestamp","ask_amount","ask_price","bid_price","bid_amount"]
[1757703368438,0.709,4625.4,4625.3,0.4188]
[1757703368635,0.709,4625.0,4624.9,0.7283]
[1757703369338,0.5048,4625.0,4624.9,0.7283]
[1757703370331,0.3041,4625.0,4624.9,0.7283]
[1757703370533,0.5048,4625.0,4624.9,0.7283]
[1757703372136,0.8302,4625.0,4624.9,0.2089]
[1757703373341,0.8302,4625.0,4624.9,0.7283]
[1757703374439,0.8302,4625.0,4624.9,0.2089]
[1757703377043,0.8302,4625.0,4624.6,0.3095]
[1757703377341,0.8302,4625.0,4624.3,0.3095]
[1757703377735,0.1212,4624.5,4622.0,0.1177]
[1757703377935,0.3041,4624.4,4623.6,0.3095]
[1757703378438,0.5048,4623.7,4623.6,0.7283]
[1757703378644,0.709,4623.7,4623.6,0.7283]
[1757703379038,0.3041,4623.7,4623.6,0.7283]
[1757703379439,0.3689,4623.9,4623.7,0.3095]
[1757703379642,0.5696,4623.9,4623.8,0.7283]
[1757703379845,0.7738,4623.9,4623.8,0.4188]
[1757703380343,0.7738,4623.9,4623.8,0.7283]
[1757703381832,0.7738,4623.9,4623.8,0.4188]
[1757703382039,0.8302,4623.5,4623.4,0.4188]
[1757703382342,0.8302,4623.5,4623.3,31.145]
[1757703382343,0.3041,4623.4,4623.3,31.145]
[1757703382840,0.3041,4623.4,4623.3,31.4545]
[1757703384049,0.3041,4623.4,4623.3,31.145]
[1757703384437,0.3041,4623.4,4623.0,0.3095]
[1757703384638,0.1212,4623.5,4622.7,0.219]
[1757703384639,0.1212,4623.0,4622.7,0.219]
[1757703384845,0.1212,4623.0,4622.6,0.7374]
[1757703384846,0.709,4622.7,4622.6,0.7374]
[1757703385044,0.709,4622.7,4622.6,0.4279]
[1757703385552,0.709,4622.7,4622.6,0.4188]
[1757703385749,0.709,4622.7,4622.6,0.2089]
[1757703387061,0.709,4622.7,4622.6,0.4188]
[1757703387361,0.709,4622.7,4622.6,0.7323]
[1757703388056,0.709,4622.7,4622.6,0.4188]
[1757703388262,0.709,4622.7,4622.6,0.2089]
[1757703388462,0.709,4622.7,4622.6,0.4034]
[1757703389360,0.709,4622.7,4622.6,0.7169]
[1757703390260,0.0648,4623.9,4622.7,0.3135]
[1757703390261,0.3072,4623.8,4622.7,0.3135]
[1757703390461,0.3072,4623.8,4622.5,0.118]
[1757703390462,0.0648,4623.9,4623.8,0.7132]
[1757703390758,0.0648,4623.9,4623.8,0.9322]
[1757703390962,0.5719,4623.9,4623.8,0.9322]
[1757703391760,0.0648,4623.9,4623.8,0.9322]
[1757703391960,0.0648,4623.9,4623.8,4.9322]
[1757703392368,0.3072,4624.8,4624.7,0.3997]
[1757703392369,0.7038,4624.8,4624.7,0.3997]
[1757703392870,0.7038,4624.8,4623.9,0.3135]
[1757703393961,0.7038,4624.1,4624.0,0.2882]
[1757703394163,0.7038,4624.1,4624.0,0.7962]
[1757703394364,0.5071,4624.1,4624.0,0.7962]
[1757703394968,0.7038,4624.1,4624.0,0.135]
[1757703395667,0.7038,4624.1,4624.0,0.2052]
[1757703396365,0.7038,4623.7,4623.6,0.3997]
[1757703396562,0.7038,4623.7,4623.6,0.4677]
[1757703396757,0.7038,4623.7,4623.6,0.7812]
[1757703397163,0.5071,4623.7,4623.6,0.7812]
[1757703397562,0.7038,4623.7,4623.6,0.7812]
[1757703397763,0.7038,4623.7,4623.6,0.4677]
[1757703399166,0.7038,4623.7,4623.6,0.2052]
[1757703399362,0.7038,4623.7,4623.5,0.219]
[1757703400362,0.7038,4623.7,4623.0,0.3135]
[1757703400563,0.5071,4623.1,4623.0,0.7132]
[1757703400760,0.5071,4623.1,4623.0,0.9322]
[1757703402063,0.7038,4623.1,4623.0,0.9322]
[1757703404972,0.1209,4623.5,4623.0,0.9322]
[1757703405167,0.3072,4623.4,4623.3,0.3997]
[1757703405374,0.1209,4624.0,4623.3,0.7132]
[1757703405575,0.3072,4623.9,4623.4,0.3135]
[1757703405875,0.5071,4623.9,4623.8,0.7132]
[1757703406075,0.7038,4623.9,4623.8,0.3997]
[1757703407071,0.7038,4623.9,4623.0,0.219]
[1757703407377,0.8069,4623.0,4622.9,0.4311]
[1757703407566,0.8069,4623.0,4622.9,0.4011]
[1757703407771,0.8069,4623.0,4622.9,0.197]
[1757703411275,0.8069,4623.0,4622.9,0.4011]
[1757703412577,0.8069,4623.0,4622.9,0.7029]
[1757703413873,0.2947,4623.0,4622.9,0.7029]
[1757703414077,0.318,4623.5,4623.4,0.4011]
[1757703414481,0.5122,4623.5,4623.4,0.4011]
[1757703414677,0.8069,4623.5,4623.4,0.4011]
[1757703416472,0.8069,4623.5,4623.4,0.197]
[1757703417782,0.8069,4623.5,4622.9,0.3018]
[1757703417979,0.8388,4623.0,4622.9,0.7062]
[1757703418980,0.5174,4623.4,4623.3,0.4044]
[1757703419182,0.5174,4623.4,4623.3,0.7129]
[1757703419571,0.7151,4623.4,4623.3,0.7129]
[1757703419882,0.7151,4623.4,4623.3,0.4044]
[1757703420281,0.3114,4623.9,4623.4,0.3085]
[1757703420477,0.1209,4624.5,4623.8,0.7129]
[1757703420677,0.3114,4624.4,4623.9,0.3085]
[1757703420879,0.5174,4624.4,4624.3,0.7129]
[1757703421080,0.7151,4624.4,4624.3,0.7129]
[1757703421280,0.7151,4624.4,4624.3,0.4044]
[1757703421880,0.7151,4624.4,4624.3,0.7129]
[1757703422080,0.7151,4624.4,4624.3,0.4044]
[1757703422483,0.7151,4624.4,4624.3,0.2088]
[1757703422982,0.7151,4624.4,4623.9,0.3085]
[1757703423192,0.5174,4623.6,4623.5,0.9319]
[1757703425585,0.3114,4623.6,4623.5,0.9319]
[1757703425789,0.1237,4624.0,4623.5,0.9319]
[1757703425981,0.3114,4623.9,4623.5,0.6234]
[1757703426290,0.5274,4624.0,4623.9,0.2088]
[1757703426780,0.8388,4624.0,4623.9,0.2088]
[1757703426981,0.8388,4624.0,4623.9,0.7129]
[1757703428681,0.0648,4624.2,4623.9,0.7129]
[1757703428885,0.0648,4624.2,4624.1,0.7129]
[1757703429288,0.4323,4624.5,4624.1,0.7129]
[1757703429589,0.3114,4624.3,4624.0,0.0529]
[1757703429787,0.3114,4624.3,4624.2,0.7129]
[1757703430088,0.7151,4624.9,4624.8,0.2088]
[1757703430281,0.7151,4624.9,4624.8,0.4044]
[1757703430986,0.7151,4624.9,4624.5,0.3085]
[1757703430987,0.8388,4624.5,4623.5,0.42009]
[1757703431196,0.1237,4624.5,4623.6,0.52475]
[1757703431389,0.3114,4624.4,4623.6,0.74375]
[1757703431590,0.1237,4624.5,4623.6,0.5275]
[1757703431782,0.1237,4624.5,4623.6,0.3085]
[1757703431982,0.3114,4624.4,4623.7,0.219]
[1757703432687,0.5174,4623.8,4623.7,0.4044]
[1757703432893,0.5174,4623.8,4623.7,0.6234]
[1757703433389,0.5174,4623.8,4623.7,0.9319]
[1757703433690,0.7151,4623.8,4623.7,0.6234]
[1757703434086,0.7151,4623.8,4623.7,0.9319]
[1757703434592,0.5174,4623.8,4623.7,0.9319]
[1757703434792,0.0648,4624.4,4623.7,0.9319]
[1757703434987,0.5174,4624.3,4624.2,0.4044]
[1757703435186,0.5174,4624.3,4624.2,0.7129]
[1757703435383,0.7151,4624.3,4624.2,0.219]
[1757703436697,0.1237,4624.0,4623.9,0.2088]
[1757703436894,0.5274,4624.0,4623.9,0.9319]
[1757703437492,0.5174,4624.0,4623.9,0.9319]
[1757703437693,0.3114,4624.0,4623.9,0.9319]
[1757703437987,0.1237,4624.5,4624.0,0.3085]
[1757703438191,0.5274,4624.5,4624.4,0.7129]
[1757703438793,0.8388,4624.5,4624.4,0.7129]
[1757703438999,0.3114,4624.5,4624.4,0.7129]
[1757703439487,0.1237,4625.0,4624.5,0.3085]
[1757703439679,0.9036,4625.0,4624.5,0.3085]
[1757703439883,0.9036,4625.0,4624.9,0.2088]
[1757703441995,0.8388,4625.0,4624.9,0.2088]
[1757703442396,0.8388,4625.0,4624.6,0.219]
[1757703445997,0.7151,4624.2,4624.1,0.2088]
[1757703446298,0.7151,4624.2,4624.1,0.9319]
[1757703446594,0.5174,4624.2,4624.1,0.9319]
[1757703449800,0.7151,4624.2,4624.1,0.4278]
[1757703450599,0.7151,4624.2,4624.1,0.624]
[1757703451702,0.7151,4624.2,4624.1,0.932]
[1757703455498,0.3114,4624.2,4624.1,0.932]
[1757703456208,0.51,4624.2,4624.1,0.932]
[1757703456597,0.71,4624.2,4624.1,0.624]
[1757703459005,0.71,4624.2,4624.1,0.405]
[1757703459201,0.71,4624.2,4624.1,0.624]
[1757703459708,0.71,4624.2,4624.1,0.932]
[1757703460007,0.71,4624.2,4624.1,0.624]
[1757703462008,0.71,4624.2,4624.1,0.932]
[1757703463106,0.71,4624.2,4624.1,0.624]
[1757703465008,0.71,4624.2,4624.1,0.932]
[1757703465706,0.289,4624.4,4624.2,0.309]
[1757703465912,0.0648,4624.6,4624.3,0.7065]
[1757703466108,0.0648,4624.6,4624.5,0.8245]
[1757703466406,0.2975,4625.4,4625.3,0.7065]
[1757703466709,0.2975,4625.4,4625.3,0.9255]
[1757703468004,0.4972,4625.9,4625.8,0.3975]
[1757703468414,0.7036,4625.9,4625.8,0.3975]
[1757703470314,0.7036,4625.9,4625.8,0.1982]
[1757703471605,0.7036,4625.9,4625.3,0.219]
[1757703471812,0.5198,4625.5,4625.4,0.1982]
[1757703472315,0.8173,4625.5,4625.4,0.1982]
[1757703472817,0.8173,4625.5,4625.4,0.3975]
[1757703473013,0.8173,4625.5,4625.4,0.7065]
[1757703473516,0.8173,4625.5,4625.4,0.3975]
[1757703474414,0.8173,4625.5,4625.4,0.7065]
[1757703474810,0.6109,4625.5,4625.4,0.7065]
[1757703476211,0.8173,4625.5,4625.4,0.7065]
[1757703476410,0.8173,4625.5,4625.4,0.3975]
[1757703480418,0.8173,4625.5,4625.4,0.6941]
[1757703480920,0.8173,4625.5,4625.4,0.3975]
[1757703481622,0.8173,4625.5,4625.4,0.1982]
[1757703481817,0.8173,4625.5,4625.3,0.219]
[1757703482026,0.1137,4625.5,4625.4,0.219]
[1757703482319,0.5033,4625.5,4625.4,0.219]
[1757703482522,0.7901,4625.5,4625.4,0.219]
[1757703482824,0.7901,4625.5,4624.9,31.133]
[1757703483023,0.1214,4625.0,4624.9,31.133]
[1757703483224,0.4082,4625.0,4624.9,31.6486]
[1757703486124,0.2868,4625.0,4624.9,31.4296]
[1757703486425,0.4082,4625.0,4624.9,31.352]
[1757703486826,0.4082,4625.0,4624.9,33.08332198]
[1757703487123,0.4082,4625.0,4624.9,33.37992198]
[1757703487321,0.4082,4625.0,4624.9,31.133]
[1757703487824,0.4082,4625.0,4624.9,31.352]
[1757703488419,0.4082,4625.0,4624.9,31.133]
[1757703488615,0.4082,4625.0,4624.9,31.352]
[1757703489417,0.4082,4625.0,4624.9,31.133]
[1757703489614,0.4082,4625.0,4624.9,31.352]
[1757703492121,0.0432,4625.7,4624.9,31.352]
[1757703493123,0.0432,4625.7,4625.0,0.219]
[1757703493418,0.2162,4625.6,4625.0,0.219]
[1757703493926,0.0432,4625.7,4625.0,0.219]
[1757703494125,0.2594,4625.7,4625.0,0.219]
[1757703494822,0.0432,4625.7,4624.9,31.133]
[1757703495023,0.0432,4625.7,4625.1,0.219]
[1757703495426,0.2162,4625.6,4625.1,0.219]
[1757703495835,0.0432,4625.7,4625.1,0.219]
[1757703496130,0.2162,4625.6,4625.1,0.219]
[1757703496831,1.16050641,4626.9,4625.1,0.219]
[1757703497031,0.40535006,4626.8,4625.1,0.219]
[1757703497328,0.81163709,4626.7,4625.1,0.219]
[1757703497628,0.81163709,4626.6,4625.1,0.219]
[1757703497829,0.81163709,4626.5,4625.1,0.219]
[1757703498029,0.81163709,4626.4,4625.1,0.219]
[1757703498230,0.81163709,4626.3,4625.1,0.219]
[1757703498425,0.81163709,4626.2,4625.1,0.219]
[1757703498638,0.81163709,4626.1,4625.1,0.219]
[1757703498821,0.62245704,4626.0,4625.1,0.219]
[1757703499022,0.21617001,4626.9,4625.1,0.219]
[1757703499226,0.81173979,4626.8,4625.1,0.219]
[1757703499525,0.81173979,4626.7,4625.1,0.219]
[1757703499727,0.81173979,4626.6,4625.1,0.219]
[1757703499934,0.81173979,4626.5,4625.1,0.219]
[1757703500128,0.81173979,4626.4,4625.1,0.219]
[1757703500427,0.81173979,4626.3,4625.1,0.219]
[1757703500628,0.81173979,4626.2,4625.1,0.219]
[1757703500827,0.81173979,4626.1,4625.1,0.219]
[1757703501029,0.62259706,4626.0,4625.1,0.219]
[1757703501228,0.21617001,4626.6,4625.1,0.219]
[1757703501427,1.02776102,4626.5,4625.1,0.219]
[1757703501634,0.81158102,4626.4,4625.1,0.219]
[1757703501844,0.81158102,4626.3,4625.1,0.219]
[1757703502033,0.81158102,4626.2,4625.1,0.219]
[1757703502333,0.81158102,4626.1,4625.1,0.219]
[1757703502530,0.21617001,4626.6,4625.1,0.219]
[1757703502732,0.81153471,4626.5,4624.2,0.38903]
[1757703502925,0.81153471,4626.4,4624.4,0.38901]
[1757703503125,0.81153471,4626.3,4624.4,0.38901]
[1757703503334,0.81153471,4626.2,4624.4,0.38901]
[1757703503531,0.81153471,4626.1,4624.3,0.089]
[1757703503737,0.0648,4626.7,4624.3,0.089]
[1757703504033,1.02768624,4626.6,4624.3,0.089]
[1757703504229,0.81149623,4626.5,4624.4,0.219]
[1757703504434,0.81149623,4626.4,4624.5,0.219]
[1757703504632,0.81149623,4626.3,4624.5,0.219]
[1757703504833,0.81149623,4626.2,4624.5,0.219]
[1757703505033,0.81149623,4626.1,4624.5,0.219]
[1757703505235,0.81149623,4626.0,4624.5,0.219]
[1757703505429,0.81149623,4625.9,4624.5,0.219]
[1757703505627,0.62242094,4625.8,4624.5,0.219]
[1757703505827,0.21619001,4626.6,4624.5,0.219]
[1757703506027,1.03071502,4626.5,4624.5,0.219]
[1757703506229,0.81452501,4626.4,4624.5,0.219]
[1757703506536,0.81452501,4626.3,4624.5,0.219]
[1757703506732,0.81450727,4626.2,4624.5,0.219]
[1757703507038,0.2866,4625.9,4624.6,0.3023]
[1757703507235,0.2866,4625.7,4624.6,0.3023]
[1757703508734,0.2866,4625.7,4624.8,0.3023]
[1757703509938,0.6974,4625.7,4625.6,0.1894]
[1757703511540,0.6974,4625.7,4624.8,0.3023]
[1757703512237,0.6974,4625.7,4624.9,0.06]
[1757703512438,0.4108,4625.7,4624.9,0.3623]
[1757703512630,0.1153,4625.5,4624.9,0.3623]
[1757703512830,0.6974,4625.4,4625.3,0.1894]
[1757703514836,0.1153,4625.0,4624.0,0.1056]
[1757703515031,0.8127,4624.5,4624.4,0.3966]
[1757703515234,0.8127,4624.5,4624.4,0.1894]
[1757703516444,0.8127,4624.5,4624.4,0.4084]
[1757703516940,0.8127,4624.5,4624.4,0.6156]
[1757703517335,0.8127,4624.5,4624.4,0.9179]
[1757703518244,0.8127,4624.5,4624.4,0.6156]
[1757703518542,0.2866,4624.4,4623.9,31.4343]
[1757703518734,0.5261,4624.5,4624.0,0.6156]
[1757703518735,0.6974,4624.1,4624.0,0.6156]
[1757703518936,0.6974,4624.1,4624.0,0.9179]
[1757703522236,0.6974,4624.1,4624.0,0.3966]
[1757703522435,0.6974,4624.1,4624.0,0.4084]
[1757703524140,0.4947,4624.1,4624.0,0.9179]
[1757703524334,0.4947,4624.1,4624.0,0.6989]
[1757703524535,0.4947,4624.1,4624.0,0.9179]
[1757703525140,0.0648,4624.6,4624.5,0.6989]
[1757703525343,0.0648,4624.6,4624.5,1.0235]
[1757703525545,0.2866,4625.1,4625.0,0.7108]
[1757703525746,0.2866,4625.1,4625.0,0.9298]
[1757703526046,0.1153,4626.5,4625.0,0.9298]
[1757703526047,0.4039,4626.5,4625.0,5.0355]
[1757703526341,0.4039,4626.5,4625.9,0.2987]
[1757703526342,0.2886,4626.4,4625.9,0.2987]
[1757703526536,0.6832,4626.4,4626.3,0.4121]
[1757703526738,0.3946,4625.2,4625.1,0.7108]
[1757703526937,0.6832,4625.2,4625.1,0.5261]
[1757703527351,0.6832,4625.2,4624.1,0.2987]
[1757703527543,0.6832,4625.2,4624.2,0.218]
[1757703527742,0.6832,4625.2,4624.3,0.2987]
[1757703527942,0.6832,4625.2,4625.1,0.2098]
[1757703528146,0.6832,4625.2,4625.1,0.4278]
[1757703528840,0.6832,4625.2,4625.1,0.6301]
[1757703529145,0.6832,4625.2,4625.1,0.9288]
[1757703529146,0.4823,4625.2,4625.1,0.9288]
[1757703533044,0.6832,4625.2,4625.1,0.6301]
[1757703533441,0.6832,4625.2,4625.1,0.4278]
[1757703533642,0.4823,4625.2,4625.1,0.9288]
[1757703533946,0.2886,4625.2,4625.1,0.9288]
[1757703534341,0.4823,4625.2,4625.1,0.9288]
[1757703535348,0.6832,4625.2,4625.1,0.9288]
[1757703535646,0.6832,4625.2,4625.1,0.6301]
[1757703535837,0.3946,4625.2,4625.1,0.218]
[1757703536148,0.4823,4625.2,4625.1,0.9288]
[1757703537144,0.2886,4625.2,4625.1,0.9288]
[1757703538246,0.0648,4625.6,4625.2,0.3105]
[1757703538448,0.3546,4625.6,4625.5,0.3105]
[1757703538650,0.3546,4625.6,4625.5,0.7154]
[1757703538951,0.7588,4625.6,4625.5,0.6229]
[1757703539544,0.694,4625.6,4625.5,0.6229]
[1757703539946,0.694,4625.6,4625.5,0.218]
[1757703540740,0.2898,4625.4,4624.8,0.3105]
[1757703540946,0.694,4625.4,4625.3,0.2058]
[1757703541147,0.4974,4625.4,4625.3,0.4049]
[1757703541348,0.2898,4625.4,4625.3,0.7154]
[1757703541751,0.2898,4625.9,4625.4,0.3105]
[1757703541951,0.2898,4625.9,4625.8,0.7154]
[1757703542152,0.2898,4625.9,4625.8,0.9334]
[1757703542352,0.4974,4625.9,4625.8,0.9334]
[1757703544852,0.4974,4626.1,4626.0,0.4049]
[1757703545050,0.4974,4626.1,4626.0,0.7154]
[1757703549756,0.0648,4626.2,4626.0,0.7154]
[1757703549960,0.5622,4626.2,4626.1,0.7154]
[1757703550456,0.3546,4626.2,4626.1,0.7154]
[1757703551054,0.5622,4626.2,4626.1,0.7154]
[1757703556466,0.7588,4626.2,4626.1,0.198]
[1757703556765,0.7588,4626.2,4626.1,0.218]
[1757703558765,0.2076,4625.4,4625.3,31.13]
[1757703558972,0.4974,4625.4,4625.3,31.6585]
[1757703559270,0.2898,4625.4,4625.3,31.6585]
[1757703560872,0.5204,4626.0,4625.9,0.2058]
[1757703561063,0.8102,4626.0,4625.9,0.4049]
[1757703561265,0.8102,4626.0,4625.4,0.3105]
[1757703561766,0.8102,4626.0,4625.4,0.4049]
[1757703561767,0.8102,4625.5,4625.4,0.4049]
[1757703561964,0.8102,4625.5,4625.4,0.6229]
[1757703562364,0.8102,4625.5,4625.4,0.7154]
[1757703562564,0.8102,4625.5,4625.4,0.9334]
[1757703562760,0.8102,4625.5,4625.4,0.7154]
[1757703562967,0.8102,4625.5,4625.4,0.6229]
[1757703564466,0.8102,4625.5,4625.4,0.4049]
[1757703564673,0.8102,4625.5,4625.4,0.6229]
[1757703565069,0.8102,4625.5,4625.4,0.4238]
[1757703565368,0.8102,4625.5,4625.4,0.218]
[1757703566176,0.2898,4625.4,4625.3,31.13]
[1757703566473,0.2898,4625.4,4625.3,31.348]
[1757703567670,0.2898,4625.4,4625.3,31.635]
[1757703568675,0.2898,4625.4,4625.3,31.348]
[1757703571772,0.2898,4625.4,4625.3,31.13]
[1757703571977,0.2898,4625.4,4625.3,31.348]
[1757703572378,0.2898,4625.4,4625.3,31.635]
[1757703572573,0.4929,4625.4,4625.3,0.9065]
[1757703575273,0.7001,4625.4,4625.3,0.6195]
[1757703575475,0.7001,4625.4,4624.8,0.287]
[1757703575671,0.5264,4625.0,4624.9,0.2085]
[1757703575979,0.5264,4625.0,4624.9,0.4265]
[1757703576168,0.8265,4625.0,4624.9,0.4265]
[1757703576768,0.8265,4625.0,4624.3,31.131]
[1757703577077,0.8265,4624.5,4624.4,0.9065]
[1757703577378,0.5032,4624.5,4624.4,0.9065]
[1757703580878,0.3001,4624.5,4624.4,0.9065]
[1757703582578,0.5032,4624.5,4624.4,0.9065]
[1757703583078,0.6193,4624.5,4624.4,0.9065]
[1757703583275,0.8265,4624.5,4624.4,0.6885]
[1757703583579,0.8265,4624.5,4624.4,0.6195]
[1757703583786,0.8265,4624.5,4624.4,0.9065]
[1757703584580,0.5032,4624.5,4624.4,0.9065]
[1757703584780,0.3001,4624.9,4624.4,0.218]
[1757703584980,0.7104,4624.9,4624.8,0.2085]
[1757703585180,0.7104,4624.9,4624.8,0.4265]
[1757703588377,0.1162,4625.5,4624.8,0.6195]
[1757703588378,0.2917,4625.4,4624.8,0.6195]
[1757703588581,0.2917,4625.4,4625.3,0.6968]
[1757703588781,0.4827,4625.4,4625.3,0.9148]
[1757703589182,0.2917,4625.4,4625.3,0.9148]
[1757703589585,0.2917,4625.5,4625.4,0.2962]
[1757703589779,0.2917,4625.5,4625.4,0.6968]
[1757703590187,0.0648,4625.6,4625.4,0.6968]
[1757703590479,0.3565,4625.6,4625.5,0.6968]
[1757703592686,0.7406,4625.6,4625.5,0.6968]
[1757703593183,0.0648,4625.6,4625.5,0.6968]
[1757703593584,0.2917,4625.6,4625.5,0.6968]
[1757703593890,0.4827,4625.6,4625.5,0.6968]
[1757703595786,0.2917,4625.6,4625.5,0.6968]
[1757703597090,0.0648,4625.8,4625.7,0.4126]
[1757703597283,0.0648,4625.8,4625.7,0.7143]
[1757703601190,0.0648,4625.8,4625.7,5.31938999]
[1757703601395,0.2833,4626.5,4625.7,5.31938999]
[1757703601597,0.2833,4626.5,4626.4,0.6643]
[1757703601796,0.4861,4626.5,4626.4,0.8823]
[1757703602094,0.6109,4626.5,4626.4,0.8823]
[1757703605491,0.2833,4626.9,4626.8,0.2029]
[1757703605694,0.1248,4626.5,4626.4,0.6306]
[1757703605997,0.6109,4626.5,4626.4,0.8823]
[1757703606198,0.3258,4626.0,4625.9,0.4126]
[1757703606391,0.8119,4626.0,4625.9,0.6306]
[1757703606699,0.8119,4626.0,4625.9,0.8823]
[1757703607196,0.6109,4626.0,4625.9,0.8823]
[1757703607594,0.8119,4626.0,4625.9,0.4126]
[1757703607898,0.8119,4626.0,4625.9,0.6306]
[1757703608297,0.8119,4626.0,4625.9,0.8823]
[1757703608698,0.8119,4626.0,4625.9,0.6306]
[1757703609202,0.8119,4626.0,4625.9,0.218]
[1757703609397,0.6871,4625.2,4625.1,0.4126]
[1757703609697,0.1248,4625.5,4624.0,0.2059]
[1757703609698,0.6109,4624.5,4624.4,31.3817]
[1757703609895,0.2833,4624.5,4624.4,31.5997]
[1757703610098,0.3276,4625.0,4624.9,0.4126]
[1757703610294,0.5286,4625.0,4624.9,0.4126]
[1757703610496,0.8119,4625.0,4624.9,0.4126]
[1757703610792,0.1248,4625.5,4625.3,0.4126]
[1757703610793,0.4861,4625.4,4625.3,0.4126]
[1757703610996,0.4861,4625.4,4625.3,0.8823]
[1757703611498,0.6871,4625.4,4625.3,0.4209]
[1757703611700,0.3276,4624.5,4624.4,31.13]
[1757703611900,0.6109,4624.5,4624.4,31.5997]
[1757703612403,0.4861,4624.5,4624.4,31.5997]
[1757703612802,0.2833,4624.5,4624.4,31.5997]
[1757703613499,0.4081,4624.5,4624.4,31.3817]
[1757703613695,0.2833,4624.5,4624.4,31.5997]
[1757703615506,0.4081,4624.5,4624.4,31.5997]
[1757703619001,0.4081,4624.5,4624.4,31.13]
[1757703619210,0.4081,4624.5,4624.4,31.348]
[1757703621813,4.4081,4624.5,4624.4,31.348]
[1757703622406,4.4081,4624.5,4624.4,31.13]
[1757703622606,0.3858,4624.1,4624.0,0.1]
[1757703622912,0.6825,4624.1,4624.0,0.318]
[1757703623915,0.6825,4624.1,4624.0,0.1]
[1757703624110,0.6825,4624.1,4624.0,0.318]
[1757703624309,4.89876,4624.1,4624.0,0.1]
[1757703624804,4.6825,4624.1,4624.0,0.1]
[1757703625713,0.6825,4623.8,4623.7,0.218]
[1757703626317,0.3858,4623.1,4623.0,0.3093]
[1757703626615,0.6825,4623.1,4623.0,0.718]
[1757703627115,0.2967,4623.1,4623.0,1.0151]
[1757703627317,0.5027,4623.1,4623.0,1.0151]
[1757703628709,0.705,4623.1,4623.0,0.1]
[1757703628908,0.708,4622.1,4622.0,0.1]
[1757703629109,0.708,4622.1,4620.5,0.1028]
[1757703629110,0.708,4621.1,4621.0,0.1]
[1757703629418,0.3252,4621.5,4621.4,0.4059]
[1757703629714,0.4083,4622.0,4621.9,0.703]
[1757703630020,0.708,4622.0,4621.9,0.785]
[1757703630214,0.2997,4622.3,4621.9,0.785]
[1757703630404,0.1192,4623.5,4622.3,0.2971]
[1757703630405,0.2997,4622.9,4622.3,0.2971]
[1757703630611,0.708,4622.9,4622.8,0.703]
[1757703630820,0.708,4622.9,4622.8,0.4059]
[1757703631825,0.708,4622.9,4622.8,0.5109]
[1757703632011,0.708,4622.9,4622.8,0.808]
[1757703632206,0.2997,4623.4,4622.8,0.5109]
[1757703632510,0.1192,4623.0,4622.9,0.125]
[1757703632712,0.4189,4623.0,4622.9,0.09]
[1757703632912,0.2997,4623.4,4622.9,0.09]
[1757703633508,0.206,4623.3,4622.4,31.145]
[1757703633713,0.5057,4623.2,4622.5,0.22]
[1757703633918,0.5705,4623.2,4622.5,0.22]
[1757703634516,0.3645,4623.2,4622.5,0.22]
[1757703634821,0.0648,4623.2,4622.7,0.38915]
[1757703635420,0.2997,4623.1,4622.7,0.38915]
[1757703635617,0.0648,4623.2,4622.8,0.38915]
[1757703635924,0.0648,4623.2,4622.5,0.43631999]
[1757703636123,0.0648,4623.2,4623.0,0.38913]
[1757703636320,0.2997,4623.9,4623.1,0.60912]
[1757703636624,0.5057,4623.9,4623.1,0.22]
[1757703637715,0.206,4623.9,4623.1,0.60912]
[1757703638018,0.206,4623.7,4622.7,0.38915]
[1757703638315,0.1192,4623.0,4622.8,0.22]
[1757703638516,0.2997,4622.9,4622.8,0.22]
[1757703639122,0.2997,4622.9,4622.4,31.145]
[1757703639419,0.4189,4622.5,4622.4,31.145]
[1757703639624,0.4189,4622.5,4622.4,31.365]
[1757703640018,0.4189,4622.5,4622.4,31.145]
[1757703640211,0.4189,4622.5,4622.4,31.365]
[1757703646725,0.6243,4621.5,4621.4,0.38927]
[1757703647026,0.4183,4621.5,4621.4,0.22]
[1757703647424,0.1198,4621.5,4621.4,0.22]
[1757703647630,0.2985,4621.9,4621.4,0.60927]
[1757703647833,0.2045,4621.9,4621.4,0.22]
[1757703648029,0.1198,4621.5,4621.4,0.22]
[1757703648329,0.4183,4621.5,4621.4,0.22]
[1757703648526,0.1198,4622.0,4621.4,0.22]
[1757703648724,0.2985,4621.9,4621.4,0.22]
[1757703648921,0.2985,4621.9,4621.4,0.60926]
[1757703649124,0.1198,4621.5,4621.4,0.60926]
[1757703649429,0.6228,4621.5,4621.2,31.148]
[1757703649632,0.2985,4621.4,4621.3,0.22]
[1757703649827,0.503,4621.4,4621.3,0.22]
[1757703650130,0.2045,4621.4,4621.3,0.22]
[1757703650326,0.503,4621.4,4621.3,0.22]
[1757703650932,0.503,4621.4,4621.2,31.148]
[1757703651136,0.503,4621.4,4621.3,0.22]
[1757703651530,0.2985,4621.3,4621.2,31.148]
[1757703651737,0.2985,4621.3,4621.2,31.368]
[1757703652328,0.2985,4621.3,4621.2,31.148]
[1757703652542,0.2985,4621.3,4621.2,31.368]